fUSD/lending_fUSD_20250513
["ID","MTS","AMOUNT","RATE_DAILY","PERIOD"]
[360891351,1747116632579,-1162.3336,0.000119,2]
[360891353,1747116632589,-158.35595349,0.000119,2]
[360891355,1747116632599,-697.302,0.000119,2]
[360891358,1747116632610,-9661.3715,0.000119,2]
[360891360,1747116632626,-207.06757324,0.000119,2]
[360891362,1747116632636,-165.43180098,0.000119,2]
[360891364,1747116632646,-125840.1864,0.000119,2]
[360891366,1747116632656,-7141.19052152,0.000119,2]
[360891368,1747116632666,-350.0,0.000119,2]
[360891370,1747116632677,-234.32077701,0.000119,2]
[360891372,1747116632687,-298.1092923,0.00011939,2]
[360891374,1747116632697,-500.0,0.00011973,2]
[360891376,1747116632707,-500.0,0.00011973,2]
[360891379,1747116632718,-500.0,0.00011973,2]
[360891381,1747116632728,-169.64,0.0001199,2]
[360891382,1747116632738,-169.64,0.0001199,2]
[360891384,1747116632748,-668.65185757,0.00011993,2]
[360891385,1747116632758,-8076.09203807,0.00012,2]
[360891386,1747116632797,-46193.41530224,0.00012,2]
[360891443,1747116638366,-161.28002997,0.000119,2]
[360891444,1747116638377,-2545.96248877,0.00012,2]
[360891445,1747116638522,-4566.47210949,0.00012,2]
[360891447,1747116638532,-11937.86731722,0.00012,2]
[360891449,1747116639839,389.64942,0.00014,5]
[360891454,1747116640405,-581.34790231,0.00012,2]
[360891455,1747116640417,-6000.0,0.00012,2]
[360891456,1747116640430,-5756.03719871,0.00012,2]
[360891457,1747116640441,-959.94020732,0.00012,2]
[360891458,1747116640597,-607.36,0.00012,2]
[360891462,1747116643392,-255.91,0.00012,2]
[360891469,1747116646366,-34145.93964281,0.00012,2]
[360891470,1747116646378,-1173.89999811,0.00012,2]
[360891471,1747116646547,-1946.09922352,0.00012,2]
[360891484,1747116665971,1000.0,0.00028,120]
[360891485,1747116690502,578.2,9.915e-05,2]
[360891488,1747116871830,162.02,0.00011251,2]
[360891489,1747116981664,166.8,0.00011599,2]
[360891490,1747116991585,170.153305,0.00028,120]
[360891491,1747117004289,170.80162123,0.00028,120]
[360891492,1747117409515,1000.0,0.0001119,2]
[360891493,1747117555265,17190.50976204,6.94e-05,2]
[360891494,1747117567599,2409.76899098,8e-05,2]
[360891495,1747117579261,166.51813404,0.00028,120]
[360891511,1747117657982,162.6,0.00011198,2]
[360891512,1747117677748,4786.84454155,0.0001,2]
[360891522,1747117756371,-191.75447035,0.00011893,2]
[360891523,1747117770983,-15.64552965,0.00011893,2]
[360891524,1747117771011,-246.88787406,0.00011894,2]
[360891528,1747117785849,-3.11212594,0.00011894,2]
[360891529,1747117785874,-200.0,0.00011894,2]
[360891530,1747117785899,-69.24033983,0.00011896,2]
[360891531,1747117800293,-130.75966017,0.00011896,2]
[360891532,1747117800318,-23.33420373,0.00011899,2]
[360891537,1747117815254,-186.20793429,0.00011899,2]
[360891538,1747117830816,-159.69820181,0.00011899,2]
[360891540,1747117831478,-1040.30179819,0.00011899,2]
[360891541,1747117831487,-150.0,0.00011899,2]
[360891542,1747117831497,-300.0,0.00011899,2]
[360891543,1747117831507,-250.0,0.000119,2]
[360891544,1747117831516,-200.0,0.000119,2]
[360891545,1747117831525,-500.0,0.000119,2]
[360891546,1747117831536,-15078.585,0.000119,2]
[360891547,1747117831546,-6266.0708,0.000119,2]
[360891548,1747117831556,-1000.0,0.000119,2]
[360891549,1747117831566,-250.1448782,0.000119,2]
[360891550,1747117831575,-233.13657234,0.000119,2]
[360891551,1747117831585,-7685.37010996,0.000119,2]
[360891552,1747117831594,-1021.0,0.000119,2]
[360891553,1747117831603,-5616.10759855,0.000119,2]
[360891554,1747117831612,-161.28002997,0.000119,2]
[360891555,1747117831622,-200.0,0.00011904,2]
[360891556,1747117831633,-200.0,0.00011923,2]
[360891557,1747117831643,-290.9152295,0.00011939,2]
[360891558,1747117831654,-1126.0,0.00011973,2]
[360891559,1747117831666,-500.0,0.00011973,2]
[360891560,1747117831675,-500.0,0.00011973,2]
[360891561,1747117831686,-500.0,0.00011973,2]
[360891562,1747117831697,-624.36,0.00011993,2]
[360891563,1747117831706,-668.65185757,0.00011993,2]
[360891564,1747117831716,-1045.012,0.00011995,2]
[360891565,1747117831725,-3556.21729913,0.00012,2]
[360891566,1747117831735,-117627.23817466,0.00012,2]
[360891567,1747117831748,-329.76386651,0.00012,2]
[360891568,1747117831760,-44939.92377785,0.00012,2]
[360891569,1747117831777,-544.9369992,0.00012,2]
[360891570,1747117831823,-850.89198,0.00012,2]
[360891571,1747117831834,-24879.48119242,0.00012,2]
[360891593,1747117837541,-3622.38406694,0.00012,2]
[360891598,1747117839581,-1000.0,0.00012,2]
[360891599,1747117839774,-0.01243898,0.00012,2]
[360891600,1747117839786,-500.36914172,0.00012,2]
[360891609,1747117845616,-276.369468,0.00011939,2]
[360891610,1747117845627,-4000.74132531,0.00012,2]
[360891611,1747117864163,549.29,9.887e-05,2]
[360891612,1747117890210,-194.16816099,0.000119,2]
[360891613,1747117905271,-196.54810321,0.000119,2]
[360891614,1747117905295,-12.2980481,0.000119,2]
[360891615,1747117920823,-458.51380859,0.000119,2]
[360891616,1747117936458,-293.63499554,0.000119,2]
[360891622,1747117950828,-180.69444866,0.000119,2]
[360891623,1747117965264,-286.25620373,0.000119,2]
[360891624,1747117981387,-228.77891233,0.00011899,2]
[360891626,1747118431681,162.02,0.00011758,2]
[360891629,1747118633199,1000.0,0.00011194,2]
[360891630,1747118663974,7866.0,0.00028,120]
[360891631,1747118685760,1484.0,0.00028,120]
[360891644,1747118927835,521.82,9.236e-05,2]
[360891645,1747118928091,521.82,0.000115,2]
[360891660,1747119031681,-207.4,0.00011893,2]
[360891661,1747119031690,-250.0,0.00011895,2]
[360891662,1747119031700,-200.0,0.00011895,2]
[360891663,1747119031709,-200.0,0.00011898,2]
[360891664,1747119031719,-49.44508033,0.00011899,2]
[360891665,1747119031730,-150.55491967,0.00011899,2]
[360891666,1747119031739,-150.0,0.00011899,2]
[360891667,1747119031749,-300.0,0.00011899,2]
[360891668,1747119031758,-1200.0,0.00011899,2]
[360891669,1747119031768,-300.0,0.00011899,2]
[360891670,1747119031777,-11312.60269538,0.000119,2]
[360891671,1747119031787,-150.0,0.000119,2]
[360891672,1747119031796,-1000.0,0.000119,2]
[360891673,1747119031813,-199.83134772,0.000119,2]
[360891674,1747119031823,-5054.49683874,0.000119,2]
[360891675,1747119031833,-6916.833099,0.000119,2]
[360891676,1747119031842,-161.28002997,0.000119,2]
[360891677,1747119031853,-351.64463778,0.000119,2]
[360891678,1747119031862,-262.5509946,0.00011939,2]
[360891679,1747119031871,-403.0,0.00011973,2]
[360891680,1747119031881,-1219.0,0.00011973,2]
[360891681,1747119031891,-229.0,0.00011973,2]
[360891682,1747119031900,-500.0,0.00011973,2]
[360891683,1747119031910,-500.0,0.00011973,2]
[360891684,1747119031919,-500.0,0.00011973,2]
[360891685,1747119031929,-500.0,0.00011973,2]
[360891686,1747119031939,-470.79401715,0.0001199,2]
[360891687,1747119031948,-668.65185757,0.00011993,2]
[360891688,1747119031958,-836.009,0.00011993,2]
[360891689,1747119031968,-32572.0961986,0.00012,2]
[360891730,1747119037698,-508.2,0.00012,2]
[360891738,1747119039938,-0.00720808,0.00012,2]
[360891739,1747119039955,-1037.6,0.00012,2]
[360891741,1747119042690,-1786.50424694,0.00012,2]
[360891742,1747119042898,-95053.10370183,0.00012,2]
[360891743,1747119042908,-167017.35983358,0.00012,2]
[360892008,1747119045781,-2187.45809612,0.00012,2]
[360892048,1747119075074,9535.0,0.0002799,120]
[360892050,1747119157928,150.0,0.00011709,2]
[360892052,1747119162387,166.66,0.0001142,2]
[360892056,1747119201989,502.0,0.000118,2]
[360892059,1747119270442,150.0,0.0001147,2]
[360892061,1747119329207,443.28,0.00011,2]
[360892064,1747119366110,150.0,0.00011054,2]
[360892065,1747119390202,150.0,0.0001185,2]
[360892066,1747119390248,150.0,0.00011332,2]
[360892067,1747119390303,150.0,0.00011568,2]
[360892068,1747119390453,150.0,0.00011695,2]
[360892069,1747119390689,150.0,0.00011336,2]
[360892070,1747119390795,150.0,0.00010977,2]
[360892071,1747119390918,150.0,0.00011362,2]
[360892074,1747119421461,1000.6,0.00012455,10]
[360892075,1747119452492,175.5,0.00011031,2]
[360892078,1747119776923,1000.0,0.00011031,2]
[360892079,1747119927617,5000.0,0.00028,120]
[360892080,1747119970947,509.22,9.093e-05,2]
[360892081,1747119971318,509.22,0.00011357,2]
[360892109,1747120231869,-150.0,0.00011886,2]
[360892110,1747120231879,-300.0,0.00011886,2]
[360892111,1747120231889,-1200.0,0.00011886,2]
[360892112,1747120231898,-300.0,0.00011886,2]
[360892113,1747120231908,-201.73429737,0.00011887,2]
[360892114,1747120231917,-231.91570263,0.00011887,2]
[360892115,1747120232027,-606.96249736,0.00011887,2]
[360892125,1747120232225,-838.87819999,0.00011887,2]
[360892127,1747120232236,-838.87819999,0.00011887,2]
[360892129,1747120232245,-838.87819999,0.00011887,2]
[360892131,1747120232254,-838.87819999,0.00011887,2]
[360892133,1747120232264,-838.87819999,0.00011887,2]
[360892135,1747120232274,-838.87819999,0.00011887,2]
[360892137,1747120232283,-838.87819999,0.00011887,2]
[360892138,1747120232294,-838.87819999,0.00011887,2]
[360892140,1747120232303,-499.40740536,0.00011887,2]
[360892146,1747120232358,-339.47079463,0.00011887,2]
[360892148,1747120232367,-838.87819999,0.00011887,2]
[360892150,1747120232376,-838.87819999,0.00011887,2]
[360892152,1747120232385,-838.87819999,0.00011887,2]
[360892154,1747120232394,-838.87819999,0.00011887,2]
[360892156,1747120232403,-838.87819999,0.00011887,2]
[360892158,1747120232412,-838.87819999,0.00011887,2]
[360892160,1747120232421,-838.87819999,0.00011887,2]
[360892162,1747120232429,-838.87819999,0.00011887,2]
[360892164,1747120232439,-838.87819999,0.00011887,2]
[360892166,1747120232448,-838.87819999,0.00011887,2]
[360892168,1747120232457,-838.87819999,0.00011887,2]
[360892170,1747120232466,-838.87819999,0.00011887,2]
[360892172,1747120232475,-838.87819999,0.00011887,2]
[360892174,1747120232487,-838.87819999,0.00011887,2]
[360892176,1747120232497,-838.87819999,0.00011887,2]
[360892178,1747120232506,-838.87819999,0.00011887,2]
[360892179,1747120232515,-838.87819999,0.00011887,2]
[360892181,1747120232525,-838.87819999,0.00011887,2]
[360892183,1747120232534,-838.87819999,0.00011887,2]
[360892185,1747120232544,-838.87819999,0.00011887,2]
[360892187,1747120232553,-838.87819999,0.00011887,2]
[360892189,1747120232562,-838.87819999,0.00011887,2]
[360892191,1747120232571,-838.87819999,0.00011887,2]
[360892193,1747120232580,-838.87819999,0.00011887,2]
[360892195,1747120232590,-838.87819999,0.00011887,2]
[360892197,1747120232600,-838.87819999,0.00011887,2]
[360892199,1747120232609,-838.87819999,0.00011887,2]
[360892201,1747120232618,-838.87819999,0.00011887,2]
[360892202,1747120232627,-838.87819999,0.00011887,2]
[360892203,1747120232636,-838.87819999,0.00011887,2]
[360892204,1747120232646,-838.87819999,0.00011887,2]
[360892205,1747120232655,-838.87819999,0.00011887,2]
[360892206,1747120232664,-838.87819999,0.00011887,2]
[360892207,1747120232675,-838.87819999,0.00011887,2]
[360892208,1747120232687,-838.87819999,0.00011887,2]
[360892209,1747120232696,-838.87819999,0.00011887,2]
[360892210,1747120232705,-838.87819999,0.00011887,2]
[360892211,1747120232714,-838.87819999,0.00011887,2]
[360892212,1747120232724,-838.87819999,0.00011887,2]
[360892213,1747120232733,-838.87819999,0.00011887,2]
[360892214,1747120232742,-838.87819999,0.00011887,2]
[360892215,1747120232751,-838.87819999,0.00011887,2]
[360892216,1747120232761,-838.87819999,0.00011887,2]
[360892217,1747120232771,-838.87819999,0.00011887,2]
[360892218,1747120232780,-838.87819999,0.00011887,2]
[360892219,1747120232789,-838.87819999,0.00011887,2]
[360892220,1747120232798,-838.87819999,0.00011887,2]
[360892221,1747120232807,-838.87819999,0.00011887,2]
[360892222,1747120232816,-865.76925763,0.00011887,2]
[360892223,1747120232825,-865.76925763,0.00011887,2]
[360892224,1747120232834,-865.76925763,0.00011887,2]
[360892225,1747120232844,-865.76925763,0.00011887,2]
[360892226,1747120232853,-865.76925763,0.00011887,2]
[360892227,1747120232862,-865.76925763,0.00011887,2]
[360892228,1747120232871,-865.76925763,0.00011887,2]
[360892229,1747120232881,-865.76925763,0.00011887,2]
[360892230,1747120232890,-865.76925763,0.00011887,2]
[360892231,1747120232900,-865.76925763,0.00011887,2]
[360892232,1747120232910,-865.76925763,0.00011887,2]
[360892233,1747120232919,-865.76925763,0.00011887,2]
[360892234,1747120232929,-865.76925763,0.00011887,2]
[360892235,1747120232938,-865.76925763,0.00011887,2]
[360892236,1747120232947,-865.76925763,0.00011887,2]
[360892237,1747120232957,-850.85447439,0.00011887,2]
[360892245,1747120238042,-14.91478324,0.00011887,2]
[360892247,1747120238051,-865.76925763,0.00011887,2]
[360892249,1747120238060,-865.76925763,0.00011887,2]
[360892251,1747120238070,-865.76925763,0.00011887,2]
[360892252,1747120238079,-865.76925763,0.00011887,2]
[360892253,1747120238089,-865.76925763,0.00011887,2]
[360892254,1747120238098,-865.76925763,0.00011887,2]
[360892255,1747120238107,-865.76925763,0.00011887,2]
[360892256,1747120238116,-865.76925763,0.00011887,2]
[360892257,1747120238126,-865.76925763,0.00011887,2]
[360892259,1747120238135,-865.76925763,0.00011887,2]
[360892261,1747120238145,-865.76925763,0.00011887,2]
[360892264,1747120238154,-865.76925763,0.00011887,2]
[360892267,1747120238163,-865.76925763,0.00011887,2]
[360892269,1747120238172,-899.42026909,0.00011887,2]
[360892272,1747120238184,-3.75877125,0.00011887,2]
[360892274,1747120238193,-903.17904034,0.00011887,2]
[360892276,1747120238203,-903.17904034,0.00011887,2]
[360892278,1747120238212,-903.17904034,0.00011887,2]
[360892279,1747120238221,-903.17904034,0.00011887,2]
[360892282,1747120238230,-903.17904033,0.00011887,2]
[360892283,1747120238240,-200.0,0.00011888,2]
[360892286,1747120238250,-250.0,0.00011889,2]
[360892288,1747120238260,-200.0,0.00011889,2]
[360892289,1747120238269,-207.4,0.00011893,2]
[360892291,1747120238278,-240.98,0.00011895,2]
[360892293,1747120238288,-270.5876,0.00011895,2]
[360892295,1747120238301,-225.283,0.00011895,2]
[360892296,1747120238310,-1162.3336,0.00011895,2]
[360892297,1747120238319,-5745.0743,0.00011895,2]
[360892298,1747120238328,-1417.08605536,0.00011895,2]
[360892299,1747120238340,-2586.02714464,0.00011895,2]
[360892300,1747120238349,-943.2077,0.00011895,2]
[360892301,1747120238358,-1477.76515536,0.00011895,2]
[360892302,1747120238370,-6088.225507,0.00011895,2]
[360892303,1747120238382,-2095.38083764,0.00011895,2]
[360892304,1747120238391,-2500.0,0.00011899,2]
[360892305,1747120238401,-500.0,0.00011899,2]
[360892306,1747120238410,-40.61916236,0.00011899,2]
[360892307,1747120238421,-959.38083764,0.00011899,2]
[360892308,1747120238431,-3799.2634,0.00011899,2]
[360892309,1747120238440,-2925.20575236,0.000119,2]
[360892310,1747120238451,-962.08,0.000119,2]
[360892311,1747120238462,-682.5605456,0.000119,2]
[360892312,1747120238474,-115.74660204,0.000119,2]
[360892313,1747120238485,-435.2127,0.000119,2]
[360892314,1747120238495,-44760.1364,0.000119,2]
[360892315,1747120238504,-1000.0,0.000119,2]
[360892316,1747120238514,-4639.8395,0.000119,2]
[360892317,1747120238523,-171.28401228,0.000119,2]
[360892318,1747120238532,-460.29131403,0.000119,2]
[360892319,1747120238541,-8399.48916213,0.000119,2]
[360892320,1747120238551,-649.78219191,0.000119,2]
[360892321,1747120238560,-1000.0,0.000119,2]
[360892322,1747120238570,-200.0,0.00011904,2]
[360892323,1747120238579,-1318.68,0.00011922,2]
[360892324,1747120238589,-1219.53,0.00011922,2]
[360892325,1747120238599,-999.99,0.00011922,2]
[360892326,1747120238608,-299.7697635,0.00011939,2]
[360892327,1747120238617,-17578.0671985,0.00011954,2]
[360892328,1747120238626,-1112.924,0.00011972,2]
[360892329,1747120238636,-2977.0,0.00011973,2]
[360892330,1747120238645,-500.0,0.00011973,2]
[360892331,1747120238654,-503.98497366,0.00011973,2]
[360892332,1747120238664,-158.92427773,0.00011973,2]
[360892333,1747120238673,-500.0,0.00011973,2]
[360892334,1747120238682,-548.19329866,0.00011973,2]
[360892335,1747120238692,-500.0,0.00011973,2]
[360892336,1747120238701,-500.0,0.00011973,2]
[360892337,1747120238710,-500.0,0.00011973,2]
[360892338,1747120238719,-501.82696767,0.00011973,2]
[360892339,1747120238729,-500.0,0.00011973,2]
[360892340,1747120238738,-501.32197605,0.00011973,2]
[360892341,1747120238748,-500.0,0.00011973,2]
[360892342,1747120238757,-502.14984192,0.00011973,2]
[360892343,1747120238766,-523.86257452,0.00011973,2]
[360892344,1747120238776,-500.0,0.00011973,2]
[360892345,1747120238785,-500.0,0.00011973,2]
[360892346,1747120238794,-500.0,0.00011973,2]
[360892347,1747120238804,-161.663619,0.00011973,2]
[360892348,1747120238813,-157.902498,0.00011973,2]
[360892349,1747120238822,-470.79401715,0.0001199,2]
[360892350,1747120238832,-185.40405009,0.00011993,2]
[360892351,1747120238842,-214.37073772,0.00011993,2]
[360892352,1747120238851,-668.65185757,0.00011993,2]
[360892353,1747120238861,-68645.56486285,0.00011994,2]
[360892354,1747120238870,-151.0,0.00011995,2]
[360892355,1747120238879,-281.562786,0.00011995,2]
[360892356,1747120238889,-151.0,0.00011995,2]
[360892357,1747120238898,-153.539306,0.00011995,2]
[360892358,1747120238907,-151.0,0.00011995,2]
[360892359,1747120238917,-151.0,0.00011995,2]
[360892360,1747120238926,-154.302166,0.00011995,2]
[360892361,1747120238935,-154.302166,0.00011995,2]
[360892362,1747120238945,-440.83316,0.00011995,2]
[360892363,1747120238954,-440.83316,0.00011995,2]
[360892364,1747120238964,-222.42649278,0.00011999,2]
[360892365,1747120238973,-371718.60288154,0.00012,2]
[360892366,1747120238982,-858361.75355169,0.00012,2]
[360892367,1747120240021,-17287.18305457,0.00012,2]
[360892375,1747120243082,-668.4941022,0.00012,2]
[360892377,1747120245896,-161.3512,0.00011973,2]
[360892378,1747120245906,-161.3512,0.00011995,2]
[360892379,1747120245915,-1916.0976,0.00012,2]
[360892412,1747120272777,125840.1864,0.000118,2]
[360892413,1747120279750,270.5876,0.00011795,2]
[360892414,1747120290494,1000.0,0.000118,2]
[360892415,1747120292401,-176.93752118,0.00011854,2]
[360892416,1747120307780,-212.00319385,0.00011854,2]
[360892417,1747120406379,5000.0,0.00028,120]
[360892418,1747120411996,262.18,0.00011052,2]
[360892420,1747120424806,9527.34,0.0001114,2]
[360892422,1747120760048,200.0,0.00011036,2]
[360892423,1747120813224,402.40445333,0.00028,120]
[360892424,1747120852570,315.83,0.00011015,2]
[360892425,1747120861280,300.0,0.0001185,2]
[360892426,1747120862191,150.0,0.0001185,2]
[360892428,1747120921765,300.0,0.0001185,2]
[360892429,1747120922640,1000.0,0.00011046,2]
[360892430,1747120958884,250.0,0.00011021,2]
[360892431,1747120977827,809.77,0.00011028,2]
[360892432,1747120981786,300.0,0.0001185,2]
[360892433,1747120992691,1000.0,0.000118,2]
[360892434,1747121027905,500.0,0.0001185,2]
[360892435,1747121027954,500.0,0.0001185,2]
[360892436,1747121028010,500.0,0.0001185,2]
[360892437,1747121028079,500.0,0.0001185,2]
[360892438,1747121028166,500.0,0.0001185,2]
[360892439,1747121028230,500.0,0.0001185,2]
[360892440,1747121028300,500.0,0.0001185,2]
[360892441,1747121028352,237.36221725,0.0001185,2]
[360892442,1747121028411,500.0,0.0001185,2]
[360892443,1747121028469,500.0,0.0001185,2]
[360892444,1747121028523,500.0,0.0001185,2]
[360892445,1747121037668,237.36221725,0.0001185,2]
[360892449,1747121238437,497.39,9.111e-05,2]
[360892450,1747121239221,497.39,0.00011375,2]
[360892451,1747121240254,207.4,0.00011847,2]
[360892489,1747121269489,327.64,0.0001104,2]
[360892490,1747121312315,500.0,0.0001185,2]
[360892495,1747121403717,3000.0,0.00027397,120]
[360892496,1747121404103,3000.0,0.00027397,120]
[360892497,1747121404454,3000.0,0.00027397,120]
[360892498,1747121404892,3000.0,0.00027397,120]
[360892499,1747121405232,3000.0,0.00027397,120]
[360892500,1747121406132,3000.0,0.00027397,120]
[360892501,1747121406453,3000.0,0.00027397,120]
[360892502,1747121406761,3000.0,0.00027397,120]
[360892503,1747121407065,3000.0,0.00027397,120]
[360892504,1747121407943,3000.0,0.00027397,120]
[360892505,1747121408459,3000.0,0.00027397,120]
[360892506,1747121408591,3000.0,0.00027397,120]
[360892507,1747121408933,3000.0,0.00027397,120]
[360892508,1747121409264,3000.0,0.00027397,120]
[360892509,1747121409738,3000.0,0.00027397,120]
[360892510,1747121410035,3000.0,0.00027397,120]
[360892511,1747121410360,3000.0,0.00027397,120]
[360892512,1747121410833,3000.0,0.00027397,120]
[360892513,1747121411146,3000.0,0.00027397,120]
[360892514,1747121411451,3000.0,0.00027397,120]
[360892515,1747121411954,3000.0,0.00027397,120]
[360892516,1747121412675,3000.0,0.00027397,120]
[360892517,1747121412762,3000.0,0.00027397,120]
[360892518,1747121413020,3000.0,0.00027397,120]
[360892519,1747121413494,3000.0,0.00027397,120]
[360892520,1747121413806,3000.0,0.00027397,120]
[360892521,1747121414133,3000.0,0.00027397,120]
[360892522,1747121414456,3000.0,0.00027397,120]
[360892523,1747121414783,3000.0,0.00027397,120]
[360892524,1747121415198,1598.712862,0.00027397,120]
[360892525,1747121427101,1021.0,0.000118,2]
[360892537,1747121431951,-286.34325989,0.00011852,2]
[360892539,1747121431963,-913.65674011,0.00011852,2]
[360892540,1747121431972,-123.23807996,0.00011852,2]
[360892541,1747121432009,-176.76192004,0.00011852,2]
[360892542,1747121432019,-300.0,0.00011852,2]
[360892543,1747121432028,-250.0,0.00011852,2]
[360892544,1747121432037,-200.0,0.00011852,2]
[360892545,1747121432047,-200.0,0.00011852,2]
[360892546,1747121432056,-200.0,0.00011852,2]
[360892547,1747121432065,-243.41889023,0.00011853,2]
[360892548,1747121432074,-667.40091053,0.00011853,2]
[360892549,1747121432158,-515.7795,0.00011853,2]
[360892550,1747121432169,-3285.93024673,0.00011853,2]
[360892551,1747121432180,-3340.36021427,0.00011853,2]
[360892552,1747121432189,-179.72785783,0.00011853,2]
[360892553,1747121432199,-190.05923917,0.00011853,2]
[360892554,1747121432208,-150.0,0.00011853,2]
[360892555,1747121432217,-4194.47758741,0.00011854,2]
[360892556,1747121432242,-1073.6567,0.00011854,2]
[360892557,1747121432261,-2655.40026375,0.00011854,2]
[360892558,1747121432309,-1922.71673897,0.00011854,2]
[360892646,1747121437987,-9966.30777892,0.00011854,2]
[360892647,1747121438184,-255.31815581,0.00011854,2]
[360892648,1747121438195,-394.384,0.00011854,2]
[360892664,1747121440499,-940.21526696,0.00011854,2]
[360892665,1747121440537,-1363.52536753,0.00011854,2]
[360892666,1747121440548,-494.285,0.00011854,2]
[360892705,1747121445958,-4834.03495992,0.00011854,2]
[360892708,1747121446097,-774.32180859,0.00011854,2]
[360892709,1747121446109,-7339.78318862,0.00011854,2]
[360892710,1747121446136,-4587.58412951,0.00011854,2]
[360892711,1747121446464,-3146.30905401,0.00011854,2]
[360892712,1747121446474,-111.05928497,0.00011854,2]
[360892713,1747121446485,-458.9272487,0.00011893,2]
[360892778,1747121448008,250.0,0.00011728,2]
[360892779,1747121492321,159.71518269,0.00011793,2]
[360892780,1747121513317,634.82293,0.00011832,2]
[360892781,1747121567820,-167.41426294,0.00011887,2]
[360892782,1747121583299,-39.98573706,0.00011887,2]
[360892783,1747121885896,157.91,0.00011063,2]
[360892784,1747122177109,1015.03819,0.00011832,2]
[360892785,1747122204955,200.0,0.00011737,2]
[360892786,1747122235061,150.0,0.00013699,7]
[360892787,1747122402777,1000.0,0.00011085,2]
[360892788,1747122417131,500.91,9.167e-05,2]
[360892789,1747122417453,500.91,0.00011431,2]
[360892827,1747122574273,2631.94,0.0002199,30]
[360892832,1747122601328,209.74,0.00011085,2]
[360892837,1747122632198,-200.0,0.00011893,2]
[360892838,1747122632208,-207.4,0.00011893,2]
[360892839,1747122632217,-285.1527292,0.00011893,2]
[360892840,1747122632260,-2274.08618175,0.00011893,2]
[360892841,1747122632271,-2609.49592439,0.00011893,2]
[360892842,1747122632282,-1097.33596466,0.00011893,2]
[360892843,1747122632291,-350.0,0.00011893,2]
[360892844,1747122632301,-200.0,0.00011895,2]
[360892845,1747122632310,-1200.0,0.00011898,2]
[360892846,1747122632320,-45.51562222,0.00011898,2]
[360892847,1747122632433,-254.48437778,0.00011898,2]
[360892848,1747122632443,-150.0,0.00011899,2]
[360892849,1747122632452,-300.0,0.00011899,2]
[360892850,1747122632461,-170.39322316,0.00011899,2]
[360892851,1747122632471,-621.0813828,0.000119,2]
[360892852,1747122632489,-378.9186172,0.000119,2]
[360892853,1747122632498,-264.42050549,0.000119,2]
[360892854,1747122632543,-297.76054302,0.000119,2]
[360892856,1747122632598,-1937.81895149,0.000119,2]
[360892858,1747122632607,-169.41035224,0.000119,2]
[360892860,1747122632616,-500.0,0.000119,2]
[360892862,1747122632625,-845.07421398,0.000119,2]
[360892877,1747122638156,-1366.24821754,0.000119,2]
[360892878,1747122638167,-1834.57867756,0.000119,2]
[360892879,1747122638254,-330.8283895,0.000119,2]
[360892880,1747122638336,-476.33,0.000119,2]
[360892883,1747122640309,-979.16171516,0.000119,2]
[360892884,1747122640321,-1199.48959226,0.000119,2]
[360892892,1747122683588,2111.927355,0.00011839,2]
[360892893,1747122921198,157.91,0.00011087,2]
[360892894,1747122969841,10938.45298251,0.000118,2]
[360892895,1747123351446,17055.79,0.00011044,2]
[360892896,1747123481940,-197.59694304,0.00011873,2]
[360892897,1747123493195,-200.0149996,0.00011873,2]
[360892898,1747123508924,-154.6254522,0.00011872,2]